fUSD/lending_fUSD_20260626
["ID","MTS","AMOUNT","RATE_DAILY","PERIOD"]
[426500116,1782485449000,-500.0,0.00030125,60]
[426500083,1782485449000,-10076.15048351,0.0003,5]
[426500114,1782485449000,-15000.0,0.000301,2]
[426500085,1782485449000,-400.0,0.0003,20]
[426500088,1782485449000,-15000.0,0.0003,2]
[426500089,1782485449000,-22500.0,0.0003,2]
[426500087,1782485449000,-1399.54,0.0003,2]
[426500093,1782485449000,-15000.0,0.0003,2]
[426500091,1782485449000,-12500.0,0.0003,2]
[426500092,1782485449000,-657.12,0.0003,2]
[426500118,1782485449000,-22500.0,0.00030125,2]
[426500097,1782485449000,-25000.0,0.0003,2]
[426500099,1782485449000,-22500.0,0.0003,2]
[426500098,1782485449000,-2500.0,0.0003,2]
[426500101,1782485449000,-22500.0,0.0003,2]
[426500102,1782485449000,-200.0,0.0003,2]
[426500100,1782485449000,-10000.0,0.0003,2]
[426500090,1782485449000,-10000.0,0.0003,2]
[426500108,1782485449000,-1083.80409697,0.0003005,2]
[426500107,1782485449000,-25000.0,0.0003,2]
[426500110,1782485449000,-400.0,0.0003007,2]
[426500113,1782485449000,-15000.0,0.000301,2]
[426500112,1782485449000,-363426.0,0.0003008,20]
[426500123,1782485449000,-31060.26277458,0.0003013,2]
[426500111,1782485449000,-700.0,0.0003007,2]
[426500122,1782485449000,-14172.21534996,0.0003013,2]
[426500109,1782485449000,-1785.38,0.00030055,2]
[426500105,1782485449000,-22500.0,0.0003,2]
[426500106,1782485449000,-10000.0,0.0003,2]
[426500103,1782485449000,-25000.0,0.0003,2]
[426500104,1782485449000,-1230.89,0.0003,2]
[426500121,1782485449000,-6537.8,0.00030125,2]
[426500193,1782485450000,-1000.0,0.00030137,30]
[426500189,1782485450000,-500.0,0.00030136,2]
[426500190,1782485450000,-500.0,0.00030136,2]
[426500194,1782485450000,-1031.94,0.00030137,30]
[426500188,1782485450000,-500.0,0.00030136,2]
[426500182,1782485450000,-500.0,0.00030136,2]
[426500191,1782485450000,-187.96921996,0.00030136,2]
[426500185,1782485450000,-500.0,0.00030136,2]
[426500187,1782485450000,-500.0,0.00030136,2]
[426500183,1782485450000,-500.0,0.00030136,2]
[426500184,1782485450000,-500.0,0.00030136,2]
[426500186,1782485450000,-500.0,0.00030136,2]
[426500192,1782485450000,-215.57,0.00030137,2]
[426500210,1782485450000,-1779.88276138,0.0003014,4]
[426500206,1782485450000,-3112.29715139,0.0003014,4]
[426500205,1782485450000,-3112.29715139,0.0003014,4]
[426500204,1782485450000,-3112.29715139,0.0003014,4]
[426500197,1782485450000,-157.93516057,0.00030137,2]
[426500195,1782485450000,-238.08789865,0.00030137,2]
[426500198,1782485450000,-315.87032113,0.00030137,2]
[426500202,1782485450000,-3112.29715139,0.0003014,4]
[426500203,1782485450000,-3112.29715139,0.0003014,4]
[426500199,1782485450000,-250.0,0.00030137,6]
[426500201,1782485450000,-796.83,0.00030137,2]
[426500200,1782485450000,-803.68,0.00030137,30]
[426500207,1782485450000,-3112.29715139,0.0003014,4]
[426500209,1782485450000,-3112.29715139,0.0003014,4]
[426500178,1782485450000,-500.0,0.00030136,2]
[426500196,1782485450000,-476.1757973,0.00030137,2]
[426500179,1782485450000,-500.0,0.00030136,2]
[426500158,1782485450000,-916.85,0.00030136,2]
[426500175,1782485450000,-500.0,0.00030136,2]
[426500156,1782485450000,-916.85,0.00030136,2]
[426500208,1782485450000,-3112.29715139,0.0003014,4]
[426500155,1782485450000,-916.85,0.00030136,2]
[426500154,1782485450000,-916.85,0.00030136,2]
[426500152,1782485450000,-916.85,0.00030136,2]
[426500150,1782485450000,-916.85,0.00030136,2]
[426500151,1782485450000,-916.85,0.00030136,2]
[426500153,1782485450000,-916.85,0.00030136,2]
[426500157,1782485450000,-916.85,0.00030136,2]
[426500159,1782485450000,-916.85,0.00030136,2]
[426500161,1782485450000,-916.85,0.00030136,2]
[426500160,1782485450000,-916.85,0.00030136,2]
[426500163,1782485450000,-916.85,0.00030136,2]
[426500180,1782485450000,-500.0,0.00030136,2]
[426500168,1782485450000,-916.85,0.00030136,2]
[426500169,1782485450000,-916.85,0.00030136,2]
[426500166,1782485450000,-916.85,0.00030136,2]
[426500165,1782485450000,-916.85,0.00030136,2]
[426500167,1782485450000,-916.85,0.00030136,2]
[426500162,1782485450000,-916.85,0.00030136,2]
[426500171,1782485450000,-931.57843865,0.00030136,7]
[426500181,1782485450000,-500.0,0.00030136,2]
[426500170,1782485450000,-916.85,0.00030136,2]
[426500173,1782485450000,-500.0,0.00030136,2]
[426500172,1782485450000,-500.0,0.00030136,2]
[426500176,1782485450000,-500.0,0.00030136,2]
[426500174,1782485450000,-500.0,0.00030136,2]
[426500177,1782485450000,-500.0,0.00030136,2]
[426500164,1782485450000,-916.85,0.00030136,2]
[426500149,1782485450000,-916.85,0.00030136,2]
[426500212,1782485450000,-1779.88276138,0.0003014,4]
[426500211,1782485450000,-1779.88276138,0.0003014,4]
[426500255,1782485450000,-15000.0,0.000302,2]
[426500244,1782485450000,-3112.29715139,0.0003014,4]
[426500257,1782485450000,-15860.53877383,0.000302,2]
[426500246,1782485450000,-3232.81626981,0.0003014,4]
[426500249,1782485450000,-3232.81626981,0.00030151,4]
[426500248,1782485450000,-1779.88276138,0.00030151,4]
[426500252,1782485450000,-3232.81626981,0.0003016,4]
[426500247,1782485450000,-3112.29715139,0.00030151,4]
[426500250,1782485450000,-3112.29715139,0.0003016,4]
[426500251,1782485450000,-1779.88276138,0.0003016,4]
[426500254,1782485450000,-201286.74635241,0.00030191,7]
[426500253,1782485450000,-168.49693019,0.00030191,7]
[426500270,1782485450000,-15000.0,0.000303,2]
[426500245,1782485450000,-1779.88276138,0.0003014,4]
[426500259,1782485450000,-25000.0,0.0003025,2]
[426500269,1782485450000,-25000.0,0.0003025,2]
[426500261,1782485450000,-12500.0,0.0003025,2]
[426500258,1782485450000,-22500.0,0.0003025,2]
[426500262,1782485450000,-25000.0,0.0003025,2]
[426500266,1782485450000,-2500.0,0.0003025,2]
[426500267,1782485450000,-22500.0,0.0003025,2]
[426500264,1782485450000,-2500.0,0.0003025,2]
[426500263,1782485450000,-22500.0,0.0003025,2]
[426500265,1782485450000,-12500.0,0.0003025,2]
[426500268,1782485450000,-10568.35,0.0003025,2]
[426500272,1782485450000,-151.56702897,0.00030322,30]
[426500271,1782485450000,-15000.0,0.000303,2]
[426500213,1782485450000,-1779.88276138,0.0003014,4]
[426500260,1782485450000,-12500.0,0.0003025,2]
[426500256,1782485450000,-15000.0,0.000302,2]
[426500273,1782485450000,-10000.0,0.00030333,2]
[426500243,1782485450000,-3232.81626981,0.0003014,4]
[426500216,1782485450000,-1779.88276138,0.0003014,4]
[426500214,1782485450000,-1779.88276138,0.0003014,4]
[426500217,1782485450000,-1779.88276138,0.0003014,4]
[426500215,1782485450000,-1779.88276138,0.0003014,4]
[426500218,1782485450000,-3232.81626981,0.0003014,4]
[426500230,1782485450000,-1779.88276138,0.0003014,4]
[426500229,1782485450000,-1779.88276138,0.0003014,4]
[426500241,1782485450000,-3232.81626981,0.0003014,4]
[426500221,1782485450000,-3232.81626981,0.0003014,4]
[426500220,1782485450000,-3232.81626981,0.0003014,4]
[426500219,1782485450000,-3232.81626981,0.0003014,4]
[426500225,1782485450000,-3232.81626981,0.0003014,4]
[426500226,1782485450000,-3112.29715139,0.0003014,4]
[426500224,1782485450000,-3232.81626981,0.0003014,4]
[426500228,1782485450000,-3112.29715139,0.0003014,4]
[426500223,1782485450000,-3232.81626981,0.0003014,4]
[426500222,1782485450000,-3232.81626981,0.0003014,4]
[426500239,1782485450000,-1779.88276138,0.0003014,4]
[426500240,1782485450000,-1779.88276138,0.0003014,4]
[426500236,1782485450000,-3112.29715139,0.0003014,4]
[426500237,1782485450000,-3112.29715139,0.0003014,4]
[426500232,1782485450000,-3232.81626981,0.0003014,4]
[426500242,1782485450000,-3232.81626981,0.0003014,4]
[426500238,1782485450000,-1779.88276138,0.0003014,4]
[426500233,1782485450000,-3232.81626981,0.0003014,4]
[426500234,1782485450000,-3232.81626981,0.0003014,4]
[426500231,1782485450000,-1779.88276138,0.0003014,4]
[426500227,1782485450000,-3112.29715139,0.0003014,4]
[426500235,1782485450000,-3112.29715139,0.0003014,4]
[426500309,1782485451000,-22500.0,0.000305,2]
[426500317,1782485451000,-232.0,0.00030618,30]
[426500310,1782485451000,-187.9,0.000305,2]
[426500316,1782485451000,-158.0,0.00030618,30]
[426500314,1782485451000,-1779.88,0.000306,4]
[426500301,1782485451000,-25000.0,0.000305,2]
[426500312,1782485451000,-1123.36,0.000306,7]
[426500311,1782485451000,-15000.0,0.000306,2]
[426500315,1782485451000,-3232.81,0.000306,4]
[426500308,1782485451000,-2500.0,0.000305,2]
[426500307,1782485451000,-12500.0,0.000305,2]
[426500313,1782485451000,-3112.29,0.000306,4]
[426500319,1782485451000,-197.0,0.0003062,30]
[426500333,1782485451000,-10000.0,0.00030667,2]
[426500328,1782485451000,-12500.0,0.00030625,2]
[426500318,1782485451000,-156.0,0.00030618,30]
[426500324,1782485451000,-157.0,0.0003062,30]
[426500321,1782485451000,-582.0,0.0003062,30]
[426500325,1782485451000,-162.0,0.0003062,30]
[426500329,1782485451000,-22500.0,0.00030625,2]
[426500323,1782485451000,-198.0,0.0003062,30]
[426500326,1782485451000,-170.0,0.0003062,30]
[426500322,1782485451000,-156.0,0.0003062,30]
[426500327,1782485451000,-694.0,0.0003062,30]
[426500330,1782485451000,-12500.0,0.00030625,2]
[426500332,1782485451000,-30076.37501201,0.00030628,3]
[426500303,1782485451000,-12500.0,0.000305,2]
[426500320,1782485451000,-152.0,0.0003062,30]
[426500306,1782485451000,-2500.0,0.000305,2]
[426500286,1782485451000,-14628.67,0.000304,2]
[426500302,1782485451000,-12500.0,0.000305,2]
[426500334,1782485451000,-10000.0,0.00030667,2]
[426500282,1782485451000,-22500.0,0.00030375,2]
[426500280,1782485451000,-22500.0,0.00030375,2]
[426500283,1782485451000,-12500.0,0.00030375,2]
[426500274,1782485451000,-10000.0,0.00030333,2]
[426500281,1782485451000,-12500.0,0.00030375,2]
[426500275,1782485451000,-8085.72,0.00030333,2]
[426500276,1782485451000,-252.43206898,0.0003036,2]
[426500278,1782485451000,-251.0,0.0003036,2]
[426500277,1782485451000,-251.0,0.0003036,2]
[426500279,1782485451000,-251.0,0.0003036,2]
[426500287,1782485451000,-1112.29,0.000304,7]
[426500295,1782485451000,-228.83,0.000305,30]
[426500284,1782485451000,-22500.0,0.00030375,2]
[426500285,1782485451000,-15000.0,0.000304,2]
[426500288,1782485451000,-500.0,0.00030442,2]
[426500290,1782485451000,-500.0,0.00030442,2]
[426500292,1782485451000,-500.0,0.00030442,2]
[426500293,1782485451000,-500.0,0.00030442,2]
[426500291,1782485451000,-500.0,0.00030442,2]
[426500289,1782485451000,-500.0,0.00030442,2]
[426500294,1782485451000,-220.26292423,0.00030442,2]
[426500297,1782485451000,-800.0,0.000305,2]
[426500298,1782485451000,-800.0,0.000305,2]
[426500304,1782485451000,-25000.0,0.000305,2]
[426500299,1782485451000,-800.0,0.000305,2]
[426500300,1782485451000,-15000.0,0.000305,2]
[426500305,1782485451000,-22500.0,0.000305,2]
[426500335,1782485451000,-251.0,0.0003069,2]
[426500296,1782485451000,-800.0,0.000305,2]
[426500331,1782485451000,-22500.0,0.00030625,2]
[426500379,1782485451000,-15000.0,0.00031,2]
[426500380,1782485451000,-10000.0,0.00031,2]
[426500394,1782485451000,-251.0,0.0003102,2]
[426500368,1782485451000,-15000.0,0.000309,2]
[426500377,1782485451000,-800.0,0.00031,2]
[426500375,1782485451000,-800.0,0.00031,2]
[426500376,1782485451000,-800.0,0.00031,2]
[426500371,1782485451000,-4607.94,0.00030969,30]
[426500374,1782485451000,-800.0,0.00031,2]
[426500372,1782485451000,-40085.66163345,0.00031,2]
[426500373,1782485451000,-13000.0,0.00031,2]
[426500378,1782485451000,-352.69870096,0.00031,5]
[426500381,1782485451000,-25000.0,0.00031,2]
[426500386,1782485451000,-8647.0,0.00031,2]
[426500383,1782485451000,-12500.0,0.00031,2]
[426500384,1782485451000,-22500.0,0.00031,2]
[426500393,1782485451000,-251.0,0.0003102,2]
[426500385,1782485451000,-2500.0,0.00031,2]
[426500382,1782485451000,-12500.0,0.00031,2]
[426500389,1782485451000,-251.0,0.0003102,2]
[426500388,1782485451000,-1000.0,0.00031,7]
[426500391,1782485451000,-251.0,0.0003102,2]
[426500390,1782485451000,-251.0,0.0003102,2]
[426500387,1782485451000,-22500.0,0.00031,2]
[426500392,1782485451000,-251.0,0.0003102,2]
[426500395,1782485451000,-251.0,0.0003102,2]
[426500337,1782485451000,-251.0,0.0003069,2]
[426500369,1782485451000,-221.0,0.000309,7]
[426500360,1782485451000,-1454.67010187,0.00030816,2]
[426500370,1782485451000,-1627.0,0.00030945,2]
[426500367,1782485451000,-1112.29,0.000309,7]
[426500340,1782485451000,-251.0,0.0003069,2]
[426500341,1782485451000,-251.0,0.0003069,2]
[426500338,1782485451000,-251.0,0.0003069,2]
[426500336,1782485451000,-251.0,0.0003069,2]
[426500365,1782485451000,-12500.0,0.00030875,2]
[426500354,1782485451000,-22500.0,0.0003075,2]
[426500342,1782485451000,-251.0,0.0003069,2]
[426500343,1782485451000,-5000.0,0.00030691,2]
[426500353,1782485451000,-12500.0,0.0003075,2]
[426500346,1782485451000,-803.68,0.00030746,30]
[426500345,1782485451000,-15000.0,0.000307,2]
[426500344,1782485451000,-1639.35,0.000307,7]
[426500350,1782485451000,-13992.82,0.0003075,2]
[426500348,1782485451000,-12500.0,0.0003075,2]
[426500339,1782485451000,-251.0,0.0003069,2]
[426500347,1782485451000,-25000.0,0.0003075,2]
[426500352,1782485451000,-2500.0,0.0003075,2]
[426500364,1782485451000,-22500.0,0.00030875,2]
[426500359,1782485451000,-1370.80090742,0.00030816,2]
[426500363,1782485451000,-12500.0,0.00030875,2]
[426500361,1782485451000,-1644.1993692,0.0003084,2]
[426500366,1782485451000,-22500.0,0.00030875,2]
[426500356,1782485451000,-1779.88276138,0.0003078,4]
[426500357,1782485451000,-3232.81626981,0.0003078,4]
[426500355,1782485451000,-3112.29715139,0.0003078,4]
[426500358,1782485451000,-15000.0,0.000308,2]
[426500351,1782485451000,-22500.0,0.0003075,2]
[426500349,1782485451000,-12500.0,0.0003075,2]
[426500362,1782485451000,-9001.0,0.00030859,10]
[426500412,1782485452000,-22500.0,0.0003125,2]
[426500403,1782485452000,-22500.0,0.00031125,2]
[426500411,1782485452000,-12500.0,0.0003125,2]
[426500414,1782485452000,-22500.0,0.0003125,2]
[426500415,1782485452000,-15000.0,0.000313,2]
[426500413,1782485452000,-2500.0,0.0003125,2]
[426500410,1782485452000,-12500.0,0.0003125,2]
[426500409,1782485452000,-25000.0,0.0003125,2]
[426500406,1782485452000,-971.01239052,0.0003115,2]
[426500405,1782485452000,-888.5068737,0.00031133,2]
[426500407,1782485452000,-15000.0,0.000312,2]
[426500402,1782485452000,-12500.0,0.00031125,2]
[426500401,1782485452000,-222.96525501,0.00031113,2]
[426500399,1782485452000,-1779.88,0.000311,4]
[426500400,1782485452000,-3232.81,0.000311,4]
[426500408,1782485452000,-1012.52198114,0.0003125,15]
[426500397,1782485452000,-15000.0,0.000311,2]
[426500398,1782485452000,-3112.29,0.000311,4]
[426500396,1782485452000,-363426.0,0.0003104,20]
[426500417,1782485452000,-11383.58436665,0.00031307,7]
[426500404,1782485452000,-22500.0,0.00031125,2]
[426500418,1782485452000,-10000.0,0.00031333,2]
[426500429,1782485452000,-22500.0,0.00031375,2]
[426500419,1782485452000,-251.0,0.0003135,2]
[426500416,1782485452000,-1123.36,0.000313,7]
[426500441,1782485452000,-3150.0,0.0003143,4]
[426500439,1782485452000,-1151.15977822,0.0003143,4]
[426500437,1782485452000,-328.872,0.0003143,4]
[426500436,1782485452000,-597.07,0.0003143,4]
[426500438,1782485452000,-918.0,0.0003143,4]
[426500435,1782485452000,-390.25981726,0.0003143,4]
[426500434,1782485452000,-750.0,0.0003143,4]
[426500432,1782485452000,-220.87705822,0.00031421,7]
[426500431,1782485452000,-15000.0,0.000314,2]
[426500433,1782485452000,-8526.24229101,0.0003143,4]
[426500440,1782485452000,-1655.35490122,0.0003143,4]
[426500427,1782485452000,-12500.0,0.00031375,2]
[426500426,1782485452000,-10000.0,0.0003136,14]
[426500430,1782485452000,-156.07684298,0.000314,30]
[426500421,1782485452000,-251.0,0.0003135,2]
[426500423,1782485452000,-251.0,0.0003135,2]
[426500420,1782485452000,-251.0,0.0003135,2]
[426500428,1782485452000,-22500.0,0.00031375,2]
[426500425,1782485452000,-803.68,0.00031355,30]
[426500424,1782485452000,-251.0,0.0003135,2]
[426500422,1782485452000,-251.0,0.0003135,2]
[426500466,1782485453000,-5000.0,0.00031506,10]
[426500469,1782485453000,-151.0,0.00031507,7]
[426500467,1782485453000,-151.0,0.00031507,7]
[426500470,1782485453000,-151.0,0.00031507,7]
[426500471,1782485453000,-151.0,0.00031507,7]
[426500478,1782485453000,-151.0,0.00031507,7]
[426500473,1782485453000,-151.0,0.00031507,7]
[426500468,1782485453000,-151.0,0.00031507,7]
[426500472,1782485453000,-151.0,0.00031507,7]
[426500476,1782485453000,-151.0,0.00031507,7]
[426500475,1782485453000,-151.0,0.00031507,7]
[426500477,1782485453000,-151.0,0.00031507,7]
[426500489,1782485453000,-151.0,0.00031507,7]
[426500480,1782485453000,-151.0,0.00031507,7]
[426500490,1782485453000,-151.0,0.00031507,7]
[426500482,1782485453000,-151.0,0.00031507,7]
[426500479,1782485453000,-151.0,0.00031507,7]
[426500465,1782485453000,-5000.0,0.00031506,2]
[426500491,1782485453000,-164.487155,0.00031507,7]
[426500474,1782485453000,-178.361476,0.00031507,7]
[426500464,1782485453000,-1000.0,0.00031506,2]
[426500444,1782485453000,-2887.66920572,0.0003143,4]
[426500461,1782485453000,-500.0,0.000315,2]
[426500481,1782485453000,-151.0,0.00031507,7]
[426500443,1782485453000,-11734.12,0.00027397,10]
[426500453,1782485453000,-5046.1317481,0.000315,2]
[426500455,1782485453000,-150.0,0.000315,2]
[426500442,1782485453000,-2384.42172203,0.00014881,2]
[426500454,1782485453000,-201.55735026,0.000315,2]
[426500447,1782485453000,-15000.0,0.000315,2]
[426500452,1782485453000,-22500.0,0.000315,2]
[426500450,1782485453000,-12500.0,0.000315,2]
[426500446,1782485453000,-200.0,0.00031448,7]
[426500445,1782485453000,-571.9450431,0.00031444,2]
[426500449,1782485453000,-12500.0,0.000315,2]
[426500448,1782485453000,-25000.0,0.000315,2]
[426500456,1782485453000,-800.0,0.000315,2]
[426500457,1782485453000,-800.0,0.000315,2]
[426500460,1782485453000,-500.0,0.000315,2]
[426500462,1782485453000,-171.00469971,0.000315,2]
[426500458,1782485453000,-800.0,0.000315,2]
[426500459,1782485453000,-800.0,0.000315,2]
[426500463,1782485453000,-152.0,0.00031505,8]
[426500488,1782485453000,-151.0,0.00031507,7]
[426500451,1782485453000,-2500.0,0.000315,2]
[426500483,1782485453000,-151.0,0.00031507,7]
[426500508,1782485453000,-151.0,0.00031507,7]
[426500510,1782485453000,-217.462429,0.00031507,7]
[426500512,1782485453000,-215.159318,0.00031507,7]
[426500515,1782485453000,-151.0,0.00031507,7]
[426500514,1782485453000,-151.0,0.00031507,7]
[426500513,1782485453000,-151.0,0.00031507,7]
[426500520,1782485453000,-151.0,0.00031507,7]
[426500530,1782485453000,-151.0,0.00031507,7]
[426500529,1782485453000,-151.0,0.00031507,7]
[426500523,1782485453000,-280.711881,0.00031507,7]
[426500524,1782485453000,-151.0,0.00031507,7]
[426500531,1782485453000,-151.0,0.00031507,7]
[426500522,1782485453000,-151.0,0.00031507,7]
[426500521,1782485453000,-151.0,0.00031507,7]
[426500527,1782485453000,-151.0,0.00031507,7]
[426500526,1782485453000,-151.0,0.00031507,7]
[426500525,1782485453000,-151.0,0.00031507,7]
[426500528,1782485453000,-151.0,0.00031507,7]
[426500485,1782485453000,-151.0,0.00031507,7]
[426500511,1782485453000,-151.0,0.00031507,7]
[426500507,1782485453000,-156.363962,0.00031507,7]
[426500519,1782485453000,-151.0,0.00031507,7]
[426500505,1782485453000,-151.892612,0.00031507,7]
[426500486,1782485453000,-151.0,0.00031507,7]
[426500509,1782485453000,-151.0,0.00031507,7]
[426500484,1782485453000,-151.0,0.00031507,7]
[426500487,1782485453000,-151.0,0.00031507,7]
[426500492,1782485453000,-151.0,0.00031507,7]
[426500496,1782485453000,-151.0,0.00031507,7]
[426500497,1782485453000,-151.0,0.00031507,7]
[426500495,1782485453000,-151.0,0.00031507,7]
[426500499,1782485453000,-151.0,0.00031507,7]
[426500501,1782485453000,-151.0,0.00031507,7]
[426500494,1782485453000,-151.0,0.00031507,7]
[426500498,1782485453000,-151.0,0.00031507,7]
[426500493,1782485453000,-151.0,0.00031507,7]
[426500502,1782485453000,-151.0,0.00031507,7]
[426500503,1782485453000,-151.0,0.00031507,7]
[426500504,1782485453000,-151.0,0.00031507,7]
[426500506,1782485453000,-151.0,0.00031507,7]
[426500517,1782485453000,-151.0,0.00031507,7]
[426500500,1782485453000,-151.0,0.00031507,7]
[426500518,1782485453000,-151.0,0.00031507,7]
[426500516,1782485453000,-151.0,0.00031507,7]
[426500557,1782485454000,-151.0,0.00031507,7]
[426500569,1782485454000,-151.0,0.00031507,7]
[426500572,1782485454000,-183.047493,0.00031507,7]
[426500570,1782485454000,-151.0,0.00031507,7]
[426500573,1782485454000,-151.0,0.00031507,7]
[426500563,1782485454000,-151.0,0.00031507,7]
[426500574,1782485454000,-151.0,0.00031507,7]
[426500565,1782485454000,-151.0,0.00031507,7]
[426500564,1782485454000,-151.0,0.00031507,7]
[426500567,1782485454000,-151.0,0.00031507,7]
[426500566,1782485454000,-151.0,0.00031507,7]
[426500568,1782485454000,-258.4,0.00031507,7]
[426500583,1782485454000,-155.585277,0.00031507,7]
[426500586,1782485454000,-169.913338,0.00031507,7]
[426500577,1782485454000,-151.0,0.00031507,7]
[426500584,1782485454000,-151.0,0.00031507,7]
[426500585,1782485454000,-155.585277,0.00031507,7]
[426500576,1782485454000,-151.0,0.00031507,7]
[426500575,1782485454000,-151.0,0.00031507,7]
[426500587,1782485454000,-155.585277,0.00031507,7]
[426500580,1782485454000,-155.585277,0.00031507,7]
[426500579,1782485454000,-211.853574,0.00031507,7]
[426500578,1782485454000,-151.0,0.00031507,7]
[426500581,1782485454000,-155.585277,0.00031507,7]
[426500558,1782485454000,-159.767542,0.00031507,7]
[426500571,1782485454000,-151.0,0.00031507,7]
[426500556,1782485454000,-151.0,0.00031507,7]
[426500537,1782485454000,-151.0,0.00031507,7]
[426500553,1782485454000,-220.351593,0.00031507,7]
[426500533,1782485454000,-151.0,0.00031507,7]
[426500532,1782485454000,-151.0,0.00031507,7]
[426500535,1782485454000,-292.421224,0.00031507,7]
[426500536,1782485454000,-151.0,0.00031507,7]
[426500534,1782485454000,-151.0,0.00031507,7]
[426500538,1782485454000,-153.167848,0.00031507,7]
[426500588,1782485454000,-155.585277,0.00031507,7]
[426500539,1782485454000,-151.0,0.00031507,7]
[426500541,1782485454000,-151.0,0.00031507,7]
[426500540,1782485454000,-151.0,0.00031507,7]
[426500542,1782485454000,-151.0,0.00031507,7]
[426500544,1782485454000,-151.0,0.00031507,7]
[426500559,1782485454000,-151.0,0.00031507,7]
[426500543,1782485454000,-184.144999,0.00031507,7]
[426500549,1782485454000,-152.372818,0.00031507,7]
[426500545,1782485454000,-151.0,0.00031507,7]
[426500546,1782485454000,-151.0,0.00031507,7]
[426500548,1782485454000,-151.0,0.00031507,7]
[426500551,1782485454000,-151.0,0.00031507,7]
[426500550,1782485454000,-151.0,0.00031507,7]
[426500561,1782485454000,-151.0,0.00031507,7]
[426500562,1782485454000,-151.0,0.00031507,7]
[426500554,1782485454000,-151.0,0.00031507,7]
[426500552,1782485454000,-151.0,0.00031507,7]
[426500560,1782485454000,-151.0,0.00031507,7]
[426500555,1782485454000,-151.0,0.00031507,7]
[426500547,1782485454000,-151.0,0.00031507,7]
[426500590,1782485454000,-155.585277,0.00031507,7]
[426500582,1782485454000,-155.585277,0.00031507,7]
[426500592,1782485454000,-155.585277,0.00031507,7]
[426500621,1782485454000,-188.454818,0.00031507,7]
[426500619,1782485454000,-188.454818,0.00031507,7]
[426500626,1782485454000,-151.0,0.00031507,2]
[426500636,1782485454000,-151.0,0.00031507,7]
[426500625,1782485454000,-188.454818,0.00031507,7]
[426500637,1782485454000,-151.0,0.00031507,7]
[426500627,1782485454000,-188.454825,0.00031507,7]
[426500631,1782485454000,-151.0,0.00031507,7]
[426500632,1782485454000,-151.0,0.00031507,7]
[426500630,1782485454000,-249.518356,0.00031507,2]
[426500629,1782485454000,-151.0,0.00031507,2]
[426500634,1782485454000,-151.0,0.00031507,7]
[426500620,1782485454000,-151.0,0.00031507,2]
[426500633,1782485454000,-151.0,0.00031507,7]
[426500638,1782485454000,-151.0,0.00031507,7]
[426500641,1782485454000,-151.0,0.00031507,7]
[426500648,1782485454000,-151.0,0.00031507,7]
[426500642,1782485454000,-221.660965,0.00031507,7]
[426500645,1782485454000,-151.0,0.00031507,7]
[426500640,1782485454000,-151.0,0.00031507,7]
[426500643,1782485454000,-151.0,0.00031507,7]
[426500646,1782485454000,-151.0,0.00031507,7]
[426500644,1782485454000,-151.0,0.00031507,7]
[426500639,1782485454000,-241.160173,0.00031507,7]
[426500647,1782485454000,-151.0,0.00031507,7]
[426500599,1782485454000,-155.585277,0.00031507,7]